[Event "73rd ARM-chW Highest League 2018"]
[Site "Yerevan"]
[Date "2018.01.12"]
[Round "1"]
[White "Arakelyan, Nare"]
[Black "Galojan, Lilit"]
[Result "1/2-1/2"]
[ECO "B06"]
[WhiteElo "1747"]
[BlackElo "2300"]
[Annotator "ChessBase"]
[PlyCount "28"]
[EventDate "2018.??.??"]
[EventType "tourn"]
[EventCountry "ARM"]
[SourceTitle "playchess.com"]
[Source "ChessBase"]
[SourceQuality "1"]
[TimeControl "40/5400+30:1800+30"]

1. e4 {[%emt 0:00:00]} g6 {[%emt 0:00:23]} 2. d4 {[%emt 0:00:02]} Bg7 {[%emt 0:00:05]} 3. Nc3 {[%emt 0:02:58]} c6 {[%emt 0:05:23]} 4. f4 {[%emt 0:05:41]} d5 {[%emt 0:01:26]} 5. e5 {[%emt 0:03:31]} Nh6 {[%emt 0:00:16]} 6. Be3 {[%emt 0:07:52]} f6 {[%emt 0:15:17]} 7. Nf3 {[%emt 0:12:32]} Ng4 {[%emt 0:13:42]} 8. Bg1 {[%emt 0:06:17]} fxe5 {[%emt 0:03:12]} 9. dxe5 {[%emt 0:04:25]} O-O {[%emt 0:19:05]} 10. h3 {[%emt 0:10:55]} Nh6 {[%emt 0:00:45]} 11. Qd2 {[%emt 0:00:43]} Qa5 {[%emt 0:09:44]} 12. O-O-O {[%emt 0:03:42]} e6 {[%emt 0:09:10]} 13. h4 {[%emt 0:09:29]} c5 {[%emt 0:00:28]} 14. Kb1 {[%emt 0:08:01]} d4 1/2-1/2

[Event "73rd ARM-chW Highest League 2018"]
[Site "Yerevan"]
[Date "2018.01.13"]
[Round "2"]
[White "Galojan, Lilit"]
[Black "Mkrtchyan, Mariam"]
[Result "1-0"]
[ECO "A41"]
[WhiteElo "2300"]
[BlackElo "1834"]
[Annotator "NA"]
[PlyCount "63"]
[EventDate "2018.??.??"]
[EventType "tourn"]
[EventCountry "ARM"]
[SourceTitle "playchess.com"]
[Source "ChessBase"]
[SourceQuality "1"]
[TimeControl "40/5400+30:1800+30"]

1. d4 {[%emt 0:00:00]} d6 {[%emt 0:00:14]} 2. Nf3 {[%emt 0:00:01]} g6 {[%emt 0:00:15]} 3. g3 {[%emt 0:01:09]} Bg7 {[%emt 0:00:09]} 4. Bg2 {[%emt 0:00:18]} Nd7 {[%emt 0:00:22]} 5. c4 {[%emt 0:00:37]} e5 {[%emt 0:00:22]} 6. Nc3 {[%emt 0:02:24]} Ne7 {[%emt 0:00:23]} 7. O-O {[%emt 0:03:16]} O-O {[%emt 0:00:09]} 8. e3 {[%emt 0:07:10]} h6 {[%emt 0:09:39]} 9. b3 {[%emt 0:04:03]} f5 {[%emt 0:05:02]} 10. dxe5 {[%emt 0:11:37]} Nxe5 {[%emt 0:08:31]} 11. Nxe5 {[%emt 0:07:50]} Bxe5 {[%emt 0:07:21]} 12. Bb2 {[%emt 0:00:39]} Rb8 {[%emt 0:06:06]} 13. Qd2 {[%emt 0:00:53]} Bd7 {[%emt 0:05:21]} 14. Rfe1 {[%emt 0:15:49]} Bc6 {[%emt 0:06:25]} 15. Nd5 {[%emt 0:06:17]} Bxb2 {[%emt 0:22:23]} 16. Qxb2 {[%emt 0:00:05]} Bxd5 {[%emt 0:00:37]} 17. cxd5 {[%emt 0:00:20]} g5 {[%emt 0:02:18]} 18. Qd4 {[%emt 0:02:58]} a6 {[%emt 0:02:19]} 19. e4 {[%emt 0:10:20]} f4 {[%emt 0:08:16]} 20. Bh3 {[%emt 0:00:07]} Ng6 {[%emt 0:02:17]} 21. Be6+ {[%emt 0:00:04]} Kh7 {[%emt 0:00:16]} 22. Bf5 {[%emt 0:00:15]} Qf6 {[%emt 0:02:23]} 23. Qxf6 {[%emt 0:00:15]} Rxf6 {[%emt 0:00:06]} 24. Rac1 {[%emt 0:00:27]} Rf7 {[%emt 0:01:20]} 25. gxf4 {[%emt 0:00:06]} Kg7 {[%emt 0:03:29]} 26. Be6 {[%emt 0:18:30]} Re7 {[%emt 0:00:07]} 27. f5 {[%emt 0:00:10]} Nf4 {[%emt 0:05:07]} 28. Rc3 {[%emt 0:00:13]} Kf6 {[%emt 0:00:19]} 29. Kf1 {[%emt 0:00:44]} Rh8 {[%emt 0:01:21]} 30. b4 {[%emt 0:01:30]} Nxe6 {[%emt 0:01:37]} 31. fxe6 {[%emt 0:00:27]} g4 {[%emt 0:00:45]} 32. f4 {[%emt 0:05:01]} 1-0

[Event "73rd ARM-chW Highest League 2018"]
[Site "Yerevan"]
[Date "2018.01.13"]
[Round "2"]
[White "Gevorgyan, Maria"]
[Black "Kursova, Maria"]
[Result "0-1"]
[ECO "B32"]
[WhiteElo "2258"]
[BlackElo "2249"]
[Annotator "NA"]
[PlyCount "124"]
[EventDate "2018.??.??"]
[EventType "tourn"]
[EventCountry "ARM"]
[SourceTitle "playchess.com"]
[Source "ChessBase"]
[SourceQuality "1"]
[TimeControl "40/5400+30:1800+30"]

1. e4 {[%emt 0:00:00]} c5 {[%emt 0:01:08]} 2. Nf3 {[%emt 0:00:00]} Nc6 {[%emt 0:00:12]} 3. d4 {[%emt 0:00:00]} cxd4 {[%emt 0:00:09]} 4. Nxd4 {[%emt 0:00:00]} e5 {[%emt 0:00:11]} 5. Nb5 {[%emt 0:01:13]} d6 {[%emt 0:00:17]} 6. N1c3 {[%emt 0:00:19]} a6 {[%emt 0:01:39]} 7. Na3 {[%emt 0:00:06]} Be6 {[%emt 0:05:28]} 8. Bc4 {[%emt 0:14:10]} b5 {[%emt 0:16:51]} 9. Bd5 {[%emt 0:08:33]} Rc8 {[%emt 0:00:26]} 10. Nab1 {[%emt 0:09:02]} Nf6 {[%emt 0:10:24]} 11. a3 {[%emt 0:12:04]} Be7 {[%emt 0:15:41]} 12. O-O {[%emt 0:05:46]} O-O {[%emt 0:01:07]} 13. Nd2 {[%emt 0:01:19]} Nd4 {[%emt 0:06:34]} 14. h3 {[%emt 0:09:14]} Nxd5 {[%emt 0:01:37]} 15. exd5 {[%emt 0:02:41]} Bf5 {[%emt 0:00:52]} 16. Nde4 {[%emt 0:00:05]} Bxe4 {[%emt 0:01:58]} 17. Nxe4 {[%emt 0:00:02]} Nxc2 {[%emt 0:01:51]} 18. Ra2 {[%emt 0:00:11]} Qc7 {[%emt 0:17:24]} 19. Nc3 {[%emt 0:10:12]} Nd4 {[%emt 0:01:56]} 20. Be3 {[%emt 0:00:09]} Qc4 {[%emt 0:01:23]} 21. Ra1 {[%emt 0:00:47]} Nb3 {[%emt 0:01:23]} 22. Rb1 {[%emt 0:00:09]} f5 {[%emt 0:00:47]} 23. f4 {[%emt 0:02:33]} e4 {[%emt 0:04:08]} 24. g4 {[%emt 0:00:10]} Bf6 {[%emt 0:04:40]} 25. gxf5 {[%emt 0:00:34]} a5 {[%emt 0:01:06]} 26. Ne2 {[%emt 0:02:11]} a4 {[%emt 0:02:03]} 27. Ng3 {[%emt 0:03:20]} Bh4 {[%emt 0:00:28]} 28. Nh1 {[%emt 0:01:53]} Rc7 {[%emt 0:01:53]} 29. Qg4 {[%emt 0:00:54]} Bf6 {[%emt 0:00:23]} 30. Rfd1 {[%emt 0:00:40]} Bd4 {[%emt 0:00:36]} 31. Bxd4 {[%emt 0:03:08]} Nxd4 {[%emt 0:00:02]} 32. Ng3 {[%emt 0:03:06]} Nf3+ {[%emt 0:00:33]} 33. Kh1 {[%emt 0:00:11]} Qc2 {[%emt 0:01:14]} 34. Nf1 {[%emt 0:00:44]} Qe2 {[%emt 0:00:32]} 35. Rd2 {[%emt 0:01:27]} Qc4 {[%emt 0:00:27]} 36. Ne3 {[%emt 0:01:44]} Qb3 {[%emt 0:00:28]} 37. Re2 {[%emt 0:01:31]} Qd3 {[%emt 0:00:09]} 38. Ree1 {[%emt 0:00:53]} Qd2 {[%emt 0:00:54]} 39. Qg2 {[%emt 0:05:26]} Qxg2+ {[%emt 0:00:15]} 40. Kxg2 {[%emt 0:00:00]} Nxe1+ {[%emt 0:30:49]} 41. Rxe1 {[%emt 0:00:03]} Rfc8 {[%emt 0:00:00]} 42. Rd1 {[%emt 0:00:23]} Rc2+ {[%emt 0:00:00]} 43. Nxc2 {[%emt 0:04:18]} Rxc2+ {[%emt 0:00:00]} 44. Kg3 {[%emt 0:00:03]} Rxb2 {[%emt 0:00:00]} 45. Rd4 {[%emt 0:00:12]} Rb3+ {[%emt 0:00:00]} 46. Kg4 {[%emt 0:00:26]} e3 {[%emt 0:00:00]} 47. Re4 {[%emt 0:00:07]} Kf7 {[%emt 0:00:00]} 48. f6 {[%emt 0:02:46]} gxf6 {[%emt 0:00:00]} 49. Re6 {[%emt 0:01:22]} b4 {[%emt 0:00:00]} 50. Kf3 {[%emt 0:01:07]} Rxa3 {[%emt 0:00:00]} 51. Rxd6 {[%emt 0:00:06]} Rd3 {[%emt 0:00:00]} 52. Ra6 {[%emt 0:02:51]} a3 {[%emt 0:00:00]} 53. Ra4 {[%emt 0:00:05]} Rb3 {[%emt 0:00:00]} 54. Ra7+ {[%emt 0:00:05]} Ke8 {[%emt 0:00:00]} 55. d6 {[%emt 0:03:24]} Rb2 {[%emt 0:02:40]} 56. Kxe3 {[%emt 0:01:17]} a2 {[%emt 0:00:04]} 57. Ke4 {[%emt 0:00:22]} b3 {[%emt 0:00:12]} 58. Kd5 {[%emt 0:00:05]} Rb1 {[%emt 0:00:45]} 59. Ra8+ {[%emt 0:00:05]} Kd7 {[%emt 0:00:19]} 60. Ra7+ {[%emt 0:00:28]} Kc8 {[%emt 0:00:11]} 61. Ra8+ {[%emt 0:02:17]} Kb7 {[%emt 0:00:28]} 62. d7 {[%emt 0:00:05]} Rd1+ {[%emt 0:00:08]} 0-1

[Event "73rd ARM-chW Highest League 2018"]
[Site "Yerevan"]
[Date "2018.01.13"]
[Round "2"]
[White "Sargsyan, Anna M"]
[Black "Ghukasyan, Siranush"]
[Result "1-0"]
[ECO "D37"]
[WhiteElo "2214"]
[BlackElo "2166"]
[Annotator "NA"]
[PlyCount "67"]
[EventDate "2018.??.??"]
[EventType "tourn"]
[EventCountry "ARM"]
[SourceTitle "playchess.com"]
[Source "ChessBase"]
[SourceQuality "1"]
[TimeControl "40/5400+30:1800+30"]

1. d4 {[%emt 0:00:00]} d5 {[%emt 0:03:41]} 2. c4 {[%emt 0:00:00]} e6 {[%emt 0:00:03]} 3. Nc3 {[%emt 0:00:00]} Be7 {[%emt 0:00:03]} 4. Nf3 {[%emt 0:00:00]} Nf6 {[%emt 0:00:10]} 5. Bf4 {[%emt 0:00:00]} O-O {[%emt 0:01:07]} 6. e3 {[%emt 0:00:00]} Nbd7 {[%emt 0:00:50]} 7. a3 {[%emt 0:00:00]} c6 {[%emt 0:05:25]} 8. Bd3 {[%emt 0:00:10]} b6 {[%emt 0:12:53]} 9. cxd5 {[%emt 0:01:18]} exd5 {[%emt 0:00:51]} 10. O-O {[%emt 0:01:38]} Re8 {[%emt 0:07:05]} 11. Rc1 {[%emt 0:03:43]} Bb7 {[%emt 0:09:10]} 12. h3 {[%emt 0:04:42]} Nf8 {[%emt 0:01:01]} 13. Ne2 {[%emt 0:07:14]} Bd6 {[%emt 0:05:33]} 14. Bxd6 {[%emt 0:08:08]} Qxd6 {[%emt 0:00:06]} 15. Ng3 {[%emt 0:00:12]} Ne4 {[%emt 0:11:15]} 16. Bxe4 {[%emt 0:07:19]} dxe4 {[%emt 0:00:05]} 17. Nd2 {[%emt 0:01:55]} Qd5 {[%emt 0:01:29]} 18. Ne2 {[%emt 0:07:49]} Rad8 {[%emt 0:04:41]} 19. b4 {[%emt 0:01:33]} f5 {[%emt 0:07:26]} 20. Qa4 {[%emt 0:04:17]} Ra8 {[%emt 0:02:57]} 21. Rfd1 {[%emt 0:04:49]} Ne6 {[%emt 0:05:35]} 22. Qc2 {[%emt 0:06:16]} Qd8 {[%emt 0:03:19]} 23. Nc4 {[%emt 0:03:26]} Rc8 {[%emt 0:03:25]} 24. Qa4 {[%emt 0:07:54]} b5 {[%emt 0:04:10]} 25. Qxa7 {[%emt 0:00:15]} Re7 {[%emt 0:00:06]} 26. d5 {[%emt 0:10:09]} cxd5 {[%emt 0:02:16]} 27. Na5 {[%emt 0:01:02]} Rb8 {[%emt 0:01:23]} 28. Nd4 {[%emt 0:00:46]} Nxd4 {[%emt 0:03:53]} 29. Qxd4 {[%emt 0:00:06]} f4 {[%emt 0:01:31]} 30. exf4 {[%emt 0:01:55]} Ba8 {[%emt 0:00:30]} 31. Nc6 {[%emt 0:01:21]} Bxc6 {[%emt 0:00:04]} 32. Rxc6 {[%emt 0:00:03]} Ra8 {[%emt 0:00:22]} 33. Rc5 {[%emt 0:00:36]} Rd7 {[%emt 0:03:08]} 34. Rxb5 {[%emt 0:00:08]} 1-0

[Event "73rd ARM-chW Highest League 2018"]
[Site "Yerevan"]
[Date "2018.01.13"]
[Round "2"]
[White "Asatryan, Sona"]
[Black "Arakelyan, Nare"]
[Result "0-1"]
[ECO "B06"]
[WhiteElo "2111"]
[BlackElo "1747"]
[Annotator "NA"]
[PlyCount "88"]
[EventDate "2018.??.??"]
[EventType "tourn"]
[EventCountry "ARM"]
[SourceTitle "playchess.com"]
[Source "ChessBase"]
[SourceQuality "1"]
[TimeControl "40/5400+30:1800+30"]

1. e4 {[%emt 0:00:00]} d6 {[%emt 0:00:22]} 2. d4 {[%emt 0:00:00]} g6 {[%emt 0:00:05]} 3. Nc3 {[%emt 0:00:00]} Bg7 {[%emt 0:00:05]} 4. f4 {[%emt 0:00:00]} a6 {[%emt 0:00:17]} 5. a4 {[%emt 0:01:04]} b6 {[%emt 0:03:49]} 6. Nf3 {[%emt 0:01:28]} Bb7 {[%emt 0:00:51]} 7. Bd3 {[%emt 0:02:26]} Nd7 {[%emt 0:18:54]} 8. O-O {[%emt 0:09:04]} e5 {[%emt 0:09:04]} 9. fxe5 {[%emt 0:13:16]} dxe5 {[%emt 0:00:11]} 10. Bg5 {[%emt 0:08:55]} Ne7 {[%emt 0:06:26]} 11. dxe5 {[%emt 0:03:39]} Nxe5 {[%emt 0:04:22]} 12. Nxe5 {[%emt 0:00:54]} Qd4+ {[%emt 0:01:36]} 13. Kh1 {[%emt 0:01:04]} Qxe5 {[%emt 0:00:04]} 14. Qf3 {[%emt 0:02:46]} f5 {[%emt 0:12:06]} 15. Rae1 {[%emt 0:04:16]} O-O {[%emt 0:06:38]} 16. Bxe7 {[%emt 0:06:02]} Qxe7 {[%emt 0:00:39]} 17. exf5 {[%emt 0:00:26]} Qxe1 {[%emt 0:01:19]} 18. Qxb7 {[%emt 0:00:57]} Qe5 {[%emt 0:03:45]} 19. Nd5 {[%emt 0:04:42]} Rad8 {[%emt 0:07:29]} 20. Nf4 {[%emt 0:06:35]} gxf5 {[%emt 0:10:09]} 21. Bc4+ {[%emt 0:06:24]} Kh8 {[%emt 0:00:03]} 22. Ne6 {[%emt 0:01:42]} Rb8 {[%emt 0:00:02]} 23. Qf3 {[%emt 0:01:32]} Rf6 {[%emt 0:00:50]} 24. Ng5 {[%emt 0:01:39]} Qe7 {[%emt 0:03:19]} 25. Qh5 {[%emt 0:04:46]} Bh6 {[%emt 0:00:18]} 26. Nf3 {[%emt 0:01:32]} b5 {[%emt 0:05:36]} 27. axb5 {[%emt 0:01:46]} axb5 28. Re1 Qb4 {[%emt 0:02:36]} 29. Bd3 {[%emt 0:08:43]} Rbf8 {[%emt 0:02:07]} 30. h3 {[%emt 0:00:29]} Qxb2 {[%emt 0:00:58]} 31. Nh4 {[%emt 0:00:58]} Qc3 {[%emt 0:00:36]} 32. Rf1 {[%emt 0:02:02]} c5 {[%emt 0:00:53]} 33. Bxf5 {[%emt 0:02:30]} Qg3 {[%emt 0:00:43]} 34. Rf3 {[%emt 0:01:25]} Qg5 {[%emt 0:00:13]} 35. Qg4 {[%emt 0:01:53]} Qc1+ {[%emt 0:00:33]} 36. Kh2 {[%emt 0:00:07]} Be3 {[%emt 0:00:09]} 37. Qh5 {[%emt 0:02:25]} Bg1+ {[%emt 0:00:35]} 38. Kg3 {[%emt 0:00:06]} Rg8+ {[%emt 0:00:28]} 39. Ng6+ {[%emt 0:00:40]} Rgxg6+ {[%emt 0:00:06]} 40. Bxg6 {[%emt 0:00:00]} Rxg6+ {[%emt 0:00:18]} 41. Kh4 {[%emt 0:01:01]} Rh6 {[%emt 0:00:21]} 42. Rf8+ {[%emt 0:00:57]} Kg7 {[%emt 0:01:02]} 43. Rf7+ {[%emt 0:00:04]} Kg8 {[%emt 0:00:05]} 44. Rf1 {[%emt 0:00:32]} Rxh5+ {[%emt 0:00:16]} 0-1

[Event "73rd ARM-chW Highest League 2018"]
[Site "Yerevan"]
[Date "2018.01.13"]
[Round "2"]
[White "Khachatryan, Anna"]
[Black "Gaboyan, Susanna"]
[Result "1/2-1/2"]
[ECO "D85"]
[WhiteElo "2004"]
[BlackElo "2168"]
[Annotator "NA"]
[PlyCount "41"]
[EventDate "2018.??.??"]
[EventType "tourn"]
[EventCountry "ARM"]
[SourceTitle "playchess.com"]
[Source "ChessBase"]
[SourceQuality "1"]
[TimeControl "40/5400+30:1800+30"]

1. d4 {[%emt 0:00:00]} Nf6 {[%emt 0:02:56]} 2. c4 {[%emt 0:00:00]} g6 {[%emt 0:00:10]} 3. Nc3 {[%emt 0:00:00]} d5 {[%emt 0:00:06]} 4. cxd5 {[%emt 0:00:12]} Nxd5 {[%emt 0:00:06]} 5. e4 {[%emt 0:00:03]} Nxc3 {[%emt 0:00:06]} 6. bxc3 {[%emt 0:00:01]} Bg7 {[%emt 0:00:07]} 7. Nf3 {[%emt 0:00:25]} c5 {[%emt 0:00:08]} 8. Rb1 {[%emt 0:00:17]} O-O {[%emt 0:01:04]} 9. Be2 {[%emt 0:01:30]} Nc6 {[%emt 0:00:12]} 10. d5 {[%emt 0:04:49]} Bxc3+ {[%emt 0:02:03]} 11. Bd2 {[%emt 0:00:00]} Bxd2+ {[%emt 0:00:16]} 12. Qxd2 {[%emt 0:00:08]} Nd4 {[%emt 0:02:16]} 13. Nxd4 {[%emt 0:05:41]} cxd4 {[%emt 0:00:09]} 14. Qxd4 {[%emt 0:06:51]} Qa5+ {[%emt 0:04:56]} 15. Qd2 {[%emt 0:16:00]} Qxd2+ {[%emt 0:01:31]} 16. Kxd2 {[%emt 0:00:01]} Rd8 {[%emt 0:00:24]} 17. Ke3 {[%emt 0:02:00]} b6 {[%emt 0:05:10]} 18. Rhc1 {[%emt 0:07:56]} e6 {[%emt 0:07:18]} 19. Bc4 {[%emt 0:04:09]} Bd7 {[%emt 0:02:13]} 20. dxe6 {[%emt 0:03:33]} fxe6 {[%emt 0:00:07]} 21. Bb3 {[%emt 0:18:57]} 1/2-1/2

[Event "73rd ARM-chW Highest League 2018"]
[Site "Yerevan"]
[Date "2018.01.14"]
[Round "3"]
[White "Kursova, Maria"]
[Black "Khachatryan, Anna"]
[Result "1-0"]
[ECO "A48"]
[WhiteElo "2249"]
[BlackElo "2004"]
[Annotator "ChessBase"]
[PlyCount "155"]
[EventDate "2018.??.??"]
[EventType "tourn"]
[EventCountry "ARM"]
[SourceTitle "playchess.com"]
[Source "ChessBase"]
[SourceQuality "1"]
[TimeControl "40/5400+30:1800+30"]

1. d4 {[%emt 0:00:00]} Nf6 {[%emt 0:00:15]} 2. Nf3 {[%emt 0:00:00]} g6 {[%emt 0:00:07]} 3. c4 {[%emt 0:00:03]} Bg7 {[%emt 0:00:27]} 4. g3 {[%emt 0:00:16]} O-O {[%emt 0:00:06]} 5. Bg2 {[%emt 0:00:13]} d6 {[%emt 0:00:10]} 6. Nc3 {[%emt 0:00:43]} c6 {[%emt 0:00:46]} 7. O-O {[%emt 0:00:21]} Qb6 {[%emt 0:00:12]} 8. b3 {[%emt 0:06:47]} Qa5 {[%emt 0:00:26]} 9. Qd2 {[%emt 0:00:43]} Qh5 {[%emt 0:00:05]} 10. Qg5 {[%emt 0:01:27]} Qxg5 {[%emt 0:00:04]} 11. Bxg5 {[%emt 0:00:25]} h6 {[%emt 0:00:03]} 12. Be3 {[%emt 0:09:33]} a6 {[%emt 0:05:20]} 13. h3 {[%emt 0:07:47]} b5 {[%emt 0:03:19]} 14. Rac1 {[%emt 0:11:28]} bxc4 {[%emt 0:33:45]} 15. bxc4 {[%emt 0:00:16]} Be6 {[%emt 0:09:44]} 16. Nd2 {[%emt 0:09:46]} Rc8 {[%emt 0:01:26]} 17. Rb1 {[%emt 0:17:02]} Nbd7 {[%emt 0:06:52]} 18. Rb3 {[%emt 0:11:40]} Ne8 {[%emt 0:10:25]} 19. d5 {[%emt 0:07:26]} cxd5 {[%emt 0:00:35]} 20. Nxd5 {[%emt 0:00:16]} Bxd5 {[%emt 0:09:12]} 21. Bxd5 {[%emt 0:00:04]} Rab8 {[%emt 0:00:22]} 22. Bb7 {[%emt 0:07:58]} Nc5 {[%emt 0:01:21]} 23. Bxc8 {[%emt 0:03:51]} Nxb3 {[%emt 0:00:04]} 24. axb3 {[%emt 0:02:16]} Rxc8 {[%emt 0:00:13]} 25. Rb1 {[%emt 0:01:09]} Rb8 {[%emt 0:03:20]} 26. Kf1 {[%emt 0:00:18]} Nc7 {[%emt 0:03:07]} 27. Nf3 {[%emt 0:00:45]} Ne6 {[%emt 0:00:58]} 28. Ke1 {[%emt 0:00:32]} Kf8 {[%emt 0:00:17]} 29. Kd2 {[%emt 0:00:08]} Ke8 {[%emt 0:00:24]} 30. Kc2 {[%emt 0:00:04]} Kd7 {[%emt 0:01:01]} 31. Rd1 {[%emt 0:00:10]} Kc6 {[%emt 0:00:27]} 32. Rd5 {[%emt 0:01:05]} Nc7 {[%emt 0:07:48]} 33. Ra5 {[%emt 0:00:04]} e6 {[%emt 0:00:56]} 34. Bd4 {[%emt 0:01:32]} Bxd4 {[%emt 0:00:42]} 35. Nxd4+ {[%emt 0:00:02]} Kb6 {[%emt 0:02:18]} 36. Ra4 {[%emt 0:00:04]} Kc5 {[%emt 0:00:23]} 37. Kc3 {[%emt 0:00:19]} e5 {[%emt 0:01:21]} 38. Nf3 {[%emt 0:01:45]} Kc6 {[%emt 0:00:24]} 39. b4 {[%emt 0:00:30]} Kb6 {[%emt 0:00:06]} 40. Ra1 {[%emt 0:00:00]} Rc8 {[%emt 0:01:05]} 41. Rd1 {[%emt 0:06:31]} Kc6 {[%emt 0:04:47]} 42. c5 {[%emt 0:06:19]} Nb5+ {[%emt 0:04:28]} 43. Kb3 {[%emt 0:00:03]} e4 {[%emt 0:02:23]} 44. Nd4+ {[%emt 0:07:26]} Nxd4+ {[%emt 0:00:21]} 45. Rxd4 {[%emt 0:00:02]} dxc5 {[%emt 0:01:12]} 46. bxc5 {[%emt 0:01:10]} e3 {[%emt 0:18:20]} 47. f3 {[%emt 0:05:04]} Rb8+ {[%emt 0:00:39]} 48. Kc4 {[%emt 0:00:04]} Rb2 {[%emt 0:00:40]} 49. Rd6+ {[%emt 0:00:04]} Kc7 {[%emt 0:00:42]} 50. Rxa6 {[%emt 0:02:59]} Rxe2 {[%emt 0:00:02]} 51. Kd3 {[%emt 0:01:44]} Rg2 {[%emt 0:01:08]} 52. g4 {[%emt 0:01:10]} e2 {[%emt 0:00:34]} 53. Kd2 {[%emt 0:00:31]} Rh2 {[%emt 0:01:03]} 54. Rf6 {[%emt 0:00:20]} Rxh3 {[%emt 0:00:41]} 55. Kxe2 {[%emt 0:00:05]} g5 {[%emt 0:00:13]} 56. Ke3 {[%emt 0:01:06]} Kd7 {[%emt 0:00:32]} 57. Rxf7+ {[%emt 0:00:56]} Ke6 {[%emt 0:00:13]} 58. Rf5 {[%emt 0:01:39]} Rh1 {[%emt 0:00:18]} 59. Kd4 {[%emt 0:00:21]} Kd7 {[%emt 0:01:04]} 60. Ke5 {[%emt 0:00:32]} Ke7 {[%emt 0:00:23]} 61. Kd5 {[%emt 0:00:07]} Rc1 {[%emt 0:00:35]} 62. Kc6 {[%emt 0:00:30]} Ke6 {[%emt 0:00:41]} 63. Kb7 {[%emt 0:00:38]} Kd7 {[%emt 0:00:25]} 64. Rd5+ {[%emt 0:02:03]} Ke6 {[%emt 0:00:10]} 65. Kc6 {[%emt 0:00:46]} Ra1 {[%emt 0:00:46]} 66. Rf5 {[%emt 0:00:35]} Ra3 {[%emt 0:00:35]} 67. Kc7 {[%emt 0:00:34]} Ra7+ {[%emt 0:00:30]} 68. Kb6 {[%emt 0:00:17]} Ra3 {[%emt 0:00:21]} 69. c6 {[%emt 0:00:39]} Rb3+ {[%emt 0:00:02]} 70. Kc7 {[%emt 0:01:15]} Ke7 {[%emt 0:00:15]} 71. Kc8 {[%emt 0:00:16]} Rc3 {[%emt 0:00:50]} 72. c7 {[%emt 0:00:07]} Rb3 {[%emt 0:00:00]} 73. Rc5 {[%emt 0:01:01]} Rb4 {[%emt 0:00:39]} 74. Rc6 {[%emt 0:00:12]} Rb3 {[%emt 0:00:37]} 75. Rxh6 {[%emt 0:00:04]} Ke8 {[%emt 0:00:35]} 76. Re6+ {[%emt 0:00:14]} Kf7 {[%emt 0:00:03]} 77. Kd7 {[%emt 0:00:15]} Rb7 {[%emt 0:00:19]} 78. Rc6 {[%emt 0:00:07]} 1-0

[Event "73rd ARM-chW Highest League 2018"]
[Site "Yerevan"]
[Date "2018.01.14"]
[Round "3"]
[White "Gaboyan, Susanna"]
[Black "Sargsyan, Anna M"]
[Result "0-1"]
[ECO "D44"]
[WhiteElo "2168"]
[BlackElo "2214"]
[Annotator "ChessBase"]
[PlyCount "132"]
[EventDate "2018.??.??"]
[EventType "tourn"]
[EventCountry "ARM"]
[SourceTitle "playchess.com"]
[Source "ChessBase"]
[SourceQuality "1"]
[TimeControl "40/5400+30:1800+30"]

1. d4 d5 2. c4 c6 3. Nc3 Nf6 4. Nf3 e6 5. Bg5 dxc4 6. e4 b5 7. e5 h6 8. Bh4 g5 9. Nxg5 hxg5 10. Bxg5 Nbd7 11. exf6 Bb7 12. g3 Qb6 13. Bg2 c5 14. d5 O-O-O 15. O-O b4 16. Rb1 Qa6 17. dxe6 Bxg2 18. e7 Bxf1 19. Kxf1 Bxe7 20. fxe7 Rdg8 21. Ne4 Qe6 22. Nd6+ Kc7 23. Bf4 Qh3+ 24. Ke1 Qe6+ 25. Qe2 Kc6 26. Rd1 Nf6 27. Nxc4 Nd5 28. Rxd5 Qxe2+ 29. Kxe2 Kxd5 30. Nd6 c4 31. h4 Rg6 32. Nxf7 Re8 33. Kd2 Rxe7 34. Ng5 Rc6 35. Be3 c3+ 36. Kc2 Ra6 37. bxc3 Rc7 38. h5 bxc3 39. a4 Rxa4 40. h6 Ra2+ 41. Kb1 Ra6 42. h7 c2+ 43. Kb2 Rb6+ 44. Ka2 Rh6 45. Kb2 Rh1 46. Bc1 Rb7+ 47. Kxc2 Rc7+ 48. Kb2 Rcxc1 49. h8=Q Rb1+ 50. Ka2 Rxh8 51. Kxb1 Rh1+ 52. Kb2 Rh2 53. Ka3 Rxf2 54. Kb4 Rg2 55. Nf3 Rxg3 56. Nd2 Kc6 57. Nb3 Kb6 58. Ka4 a5 59. Ka3 Kb5 60. Ka2 Kb4 61. Nd4 Rg2+ 62. Kb1 a4 63. Nc2+ Kc3 64. Ne3 Rh2 65. Nf5 a3 66. Ng3 Kb3 0-1

[Event "73rd ARM-chW Highest League 2018"]
[Site "Yerevan"]
[Date "2018.01.14"]
[Round "3"]
[White "Ghukasyan, Siranush"]
[Black "Galojan, Lilit"]
[Result "0-1"]
[ECO "C84"]
[WhiteElo "2166"]
[BlackElo "2300"]
[Annotator "ChessBase"]
[PlyCount "100"]
[EventDate "2018.??.??"]
[EventType "tourn"]
[EventCountry "ARM"]
[SourceTitle "playchess.com"]
[Source "ChessBase"]
[SourceQuality "1"]
[TimeControl "40/5400+30:1800+30"]

1. e4 {[%emt 0:00:34]} e5 {[%emt 0:00:08]} 2. Nf3 {[%emt 0:00:13]} Nc6 {[%emt 0:00:06]} 3. Bb5 {[%emt 0:00:03]} a6 {[%emt 0:00:10]} 4. Ba4 {[%emt 0:00:08]} Nf6 {[%emt 0:00:14]} 5. O-O {[%emt 0:00:49]} Be7 {[%emt 0:00:07]} 6. d3 {[%emt 0:00:05]} d6 {[%emt 0:00:16]} 7. c3 {[%emt 0:00:42]} O-O {[%emt 0:01:20]} 8. Nbd2 {[%emt 0:00:32]} Re8 {[%emt 0:03:07]} 9. d4 {[%emt 0:09:23]} Bd7 {[%emt 0:07:42]} 10. Re1 {[%emt 0:09:08]} Bf8 {[%emt 0:02:41]} 11. Bc2 {[%emt 0:03:34]} Bg4 {[%emt 0:08:06]} 12. h3 {[%emt 0:01:00]} Bh5 {[%emt 0:00:29]} 13. d5 {[%emt 0:02:51]} Nb8 {[%emt 0:13:09]} 14. g4 {[%emt 0:00:46]} Bg6 {[%emt 0:00:24]} 15. Nf1 {[%emt 0:00:15]} c6 {[%emt 0:01:01]} 16. c4 {[%emt 0:00:49]} b5 {[%emt 0:02:24]} 17. b3 {[%emt 0:01:44]} cxd5 {[%emt 0:00:23]} 18. cxd5 {[%emt 0:00:11]} Nbd7 {[%emt 0:01:41]} 19. Bd2 {[%emt 0:04:49]} Qc7 {[%emt 0:04:51]} 20. Rc1 {[%emt 0:00:33]} Rec8 {[%emt 0:00:52]} 21. Ng3 {[%emt 0:00:39]} Qd8 {[%emt 0:04:20]} 22. h4 {[%emt 0:19:44]} h6 {[%emt 0:13:41]} 23. g5 {[%emt 0:02:51]} hxg5 {[%emt 0:12:13]} 24. hxg5 {[%emt 0:00:25]} Nh5 {[%emt 0:08:59]} 25. Nxe5 {[%emt 0:09:49]} dxe5 {[%emt 0:01:48]} 26. Nxh5 {[%emt 0:00:10]} Ba3 {[%emt 0:00:10]} 27. Ng3 {[%emt 0:04:59]} Nb6 {[%emt 0:11:39]} 28. Rb1 {[%emt 0:06:38]} Nxd5 {[%emt 0:00:42]} 29. b4 {[%emt 0:00:59]} Nc3 {[%emt 0:01:18]} 30. Bxc3 {[%emt 0:00:06]} Rxc3 {[%emt 0:00:40]} 31. Qxd8+ {[%emt 0:08:20]} Rxd8 {[%emt 0:00:05]} 32. Red1 {[%emt 0:01:38]} Rdc8 {[%emt 0:01:03]} 33. Bd3 {[%emt 0:01:29]} Rc1 {[%emt 0:00:23]} 34. Rdxc1 {[%emt 0:03:11]} Rxc1+ {[%emt 0:00:35]} 35. Rxc1 {[%emt 0:00:22]} Bxc1 {[%emt 0:00:01]} 36. Ne2 {[%emt 0:02:37]} Bd2 {[%emt 0:00:55]} 37. a3 {[%emt 0:00:33]} Bh5 {[%emt 0:00:28]} 38. Kg2 {[%emt 0:01:07]} Bxg5 {[%emt 0:00:28]} 39. Nc3 {[%emt 0:00:18]} Bc1 {[%emt 0:00:25]} 40. a4 {[%emt 0:00:00]} Bd2 {[%emt 0:00:13]} 41. Nb1 {[%emt 0:04:49]} Bxb4 {[%emt 0:04:06]} 42. axb5 {[%emt 0:00:03]} axb5 {[%emt 0:01:07]} 43. Bxb5 {[%emt 0:00:01]} Bd1 {[%emt 0:00:56]} 44. Bd3 {[%emt 0:00:14]} Kh7 {[%emt 0:05:44]} 45. Kg3 {[%emt 0:01:40]} Kh6 {[%emt 0:00:44]} 46. Kh4 {[%emt 0:02:14]} Kg6 {[%emt 0:00:54]} 47. Kh3 {[%emt 0:01:49]} Kg5 {[%emt 0:05:09]} 48. Kg3 {[%emt 0:00:25]} f6 {[%emt 0:00:30]} 49. Kg2 {[%emt 0:05:13]} Kf4 {[%emt 0:00:14]} 50. Kf1 {[%emt 0:03:21]} Bf3 {[%emt 0:00:32]} 0-1